bitfinex/quotes_BTCUSD_20250614
["timestamp","ask_amount","ask_price","bid_price","bid_amount"]
[1749916123277,3.54829982,104890.0,104880.0,0.31094882]
[1749916123776,3.54829982,104890.0,104880.0,0.26462882]
[1749916124008,3.54829982,104890.0,104880.0,0.32048343]
[1749916125491,3.54829982,104890.0,104880.0,0.33001795]
[1749916126126,3.55783343,104890.0,104880.0,0.3395522]
[1749916126337,3.57690056,104890.0,104880.0,0.3395522]
[1749916126704,3.56736722,104890.0,104880.0,0.33001795]
[1749916127103,3.56736722,104890.0,104880.0,0.33955238]
[1749916129878,3.56736722,104890.0,104880.0,0.34908672]
[1749916130113,3.56736722,104890.0,104880.0,0.34908627]
[1749916130319,3.56736722,104890.0,104880.0,0.33955202]
[1749916131782,3.56736722,104890.0,104880.0,0.34908618]
[1749916131995,3.37723122,104890.0,104880.0,0.34908618]
[1749916133682,3.18655528,104890.0,104880.0,0.34908563]
[1749916133907,3.37723122,104890.0,104880.0,0.39353127]
[1749916134116,3.37723122,104890.0,104880.0,0.33955157]
[1749916134329,3.18655528,104890.0,104880.0,0.33955157]
[1749916134545,3.16748788,104890.0,104880.0,0.34908563]
[1749916134783,3.17702085,104890.0,104880.0,0.34908563]
[1749916135018,3.19608726,104890.0,104880.0,0.34908563]
[1749916135256,3.19612092,104890.0,104880.0,0.34908563]
[1749916136252,3.18658758,104890.0,104880.0,0.34908563]
[1749916136535,3.19612083,104890.0,104880.0,0.34908563]
[1749916136744,3.144711,104890.0,104880.0,0.34908563]
[1749916137178,3.15424407,104890.0,104880.0,0.34908563]
[1749916137854,3.144711,104890.0,104880.0,0.34908563]
[1749916138062,0.47,104890.0,104880.0,0.34908563]
[1749916138281,0.13,104890.0,104880.0,0.34908563]
[1749916138503,0.13,104890.0,104880.0,0.60588988]
[1749916138722,0.13,104890.0,104880.0,1.28148041]
[1749916138930,0.13,104890.0,104880.0,0.60588988]
[1749916139118,0.02014313,104900.0,104890.0,0.28297623]
[1749916139362,0.02014313,104900.0,104890.0,0.44717623]
[1749916140531,0.0296752,104900.0,104890.0,0.44717623]
[1749916141003,0.0306752,104900.0,104890.0,0.44717623]
[1749916141451,0.02214313,104900.0,104890.0,0.44717623]
[1749916141715,0.0316752,104900.0,104890.0,0.44717623]
[1749916142170,0.04874015,104900.0,104890.0,0.44717623]
[1749916142376,0.04874006,104900.0,104890.0,0.44817623]
[1749916142588,0.03920754,104900.0,104890.0,0.44817623]
[1749916143243,0.02014313,104900.0,104890.0,0.71513503]
[1749916143461,0.02014313,104900.0,104890.0,1.39072556]
[1749916143683,0.02014313,104900.0,104890.0,0.71513503]
[1749916144406,0.02014313,104900.0,104890.0,0.71413503]
[1749916144617,0.02014313,104900.0,104890.0,0.71513503]
[1749916145050,0.02014313,104900.0,104890.0,0.71913503]
[1749916145256,0.02014313,104900.0,104890.0,0.71813503]
[1749916145467,0.02014313,104900.0,104890.0,0.99289503]
[1749916145683,0.02014313,104900.0,104890.0,0.92427709]
[1749916146114,0.02014313,104900.0,104890.0,0.76007709]
[1749916146323,0.02014313,104900.0,104890.0,0.96999709]
[1749916153066,0.12417264,104920.0,104910.0,0.29427527]
[1749916153284,2.69376814,104940.0,104930.0,0.27969263]
[1749916153497,3.0434336,104940.0,104930.0,0.48937263]
[1749916153704,3.03390471,104940.0,104930.0,0.48937263]
[1749916153891,3.04343351,104940.0,104930.0,0.48937263]
[1749916154310,3.0529624,104940.0,104930.0,0.48937263]
[1749916154936,3.04343351,104940.0,104930.0,0.50937815]
[1749916155154,3.03390461,104940.0,104930.0,0.50937815]
[1749916155410,3.024376,104940.0,104930.0,0.50937815]
[1749916155641,3.03390461,104940.0,104930.0,0.50937815]
[1749916155852,3.026376,104940.0,104930.0,0.50937815]
[1749916156064,3.027376,104940.0,104930.0,0.50937815]
[1749916156280,2.780363,104940.0,104930.0,0.50937815]
[1749916156490,2.78989161,104940.0,104930.0,0.50937815]
[1749916156916,0.36119361,104940.0,104930.0,0.50937815]
[1749916157588,0.35919361,104940.0,104930.0,0.50937815]
[1749916157809,0.349665,104940.0,104930.0,0.50937815]
[1749916158042,0.35919361,104940.0,104930.0,0.50937815]
[1749916158268,0.34013657,104940.0,104930.0,0.50937815]
[1749916158478,0.35919361,104940.0,104930.0,0.50937815]
[1749916159123,0.349665,104940.0,104930.0,0.50937815]
[1749916159416,0.34013657,104940.0,104930.0,0.50937815]
[1749916160126,0.34966509,104940.0,104930.0,0.50937815]
[1749916160338,0.34966518,104940.0,104930.0,0.50937815]
[1749916160559,0.35919398,104940.0,104930.0,0.50937815]
[1749916160992,0.35919398,104940.0,104930.0,0.48937263]
[1749916161208,0.36872287,104940.0,104930.0,0.48937263]
[1749916161640,0.37825194,104940.0,104930.0,0.48937263]
[1749916161865,0.36872287,104940.0,104930.0,0.48937263]
[1749916162269,0.54977962,104940.0,104930.0,0.0302]
[1749916162495,0.54977962,104940.0,104930.0,0.24537323]
[1749916162727,0.54977962,104940.0,104930.0,0.23584325]
[1749916162951,0.54977962,104940.0,104930.0,0.24537332]
[1749916163598,0.02858874,104930.0,104920.0,0.44809681]
[1749916163840,0.02858874,104930.0,104920.0,0.58957857]
[1749916164061,0.03811872,104930.0,104920.0,0.58008832]
[1749916164282,0.03811872,104930.0,104920.0,0.49337762]
[1749916164283,0.04764934,104930.0,104920.0,0.49337762]
[1749916164511,0.04764934,104930.0,104920.0,0.50290805]
[1749916164979,0.2001524,104920.0,104910.0,0.5831695]
[1749916165200,0.20968319,104920.0,104910.0,0.76805505]
[1749916165649,0.02859229,104920.0,104910.0,0.78711809]
[1749916165875,0.02859229,104920.0,104910.0,0.78711746]
[1749916166334,0.21921371,104920.0,104910.0,0.77758612]
[1749916166560,0.02859229,104920.0,104910.0,0.78711746]
[1749916166782,0.02859229,104920.0,104910.0,0.78911746]
[1749916167057,0.02859229,104920.0,104910.0,0.77958612]
[1749916167281,0.20968319,104920.0,104910.0,0.35612]
[1749916167485,2.63738119,104920.0,104910.0,0.52965197]
[1749916167710,2.63738119,104920.0,104910.0,0.56582326]
[1749916167963,2.63738119,104920.0,104910.0,0.72982326]
[1749916168214,2.44675977,104920.0,104910.0,0.73935478]
[1749916168431,2.45629001,104920.0,104910.0,0.87813534]
[1749916168650,0.00953025,104920.0,104910.0,0.78198612]
[1749916168861,2.64689146,104930.0,104920.0,0.27558328]
[1749916169502,2.44675805,104930.0,104920.0,0.27558328]
[1749916169723,2.6373613,104930.0,104920.0,0.27558328]
[1749916169937,2.6373613,104930.0,104920.0,0.28511398]
[1749916170365,0.01906131,104920.0,104910.0,0.7690137]
[1749916170580,0.0381219,104920.0,104910.0,0.7690137]
[1749916171463,0.0381219,104920.0,104910.0,0.7710137]
[1749916171670,0.04765278,104920.0,104910.0,0.7710137]
[1749916172092,0.0381219,104920.0,104910.0,0.7710137]
[1749916172305,0.0381219,104920.0,104910.0,0.86916292]
[1749916173157,0.04765278,104920.0,104910.0,0.86916292]
[1749916173364,0.04765351,104920.0,104910.0,0.86916292]
[1749916173777,0.04765351,104920.0,104910.0,0.7730137]
[1749916174407,0.02859165,104920.0,104910.0,0.7730137]
[1749916174619,0.03812253,104920.0,104910.0,0.7730137]
[1749916175129,0.04765351,104920.0,104910.0,0.7730137]
[1749916175348,0.04765351,104920.0,104910.0,0.7634829]
[1749916175551,0.04765424,104920.0,104910.0,0.7634829]
[1749916176192,0.23827566,104920.0,104910.0,0.7634829]
[1749916176832,0.22874514,104920.0,104910.0,0.7634829]
[1749916177048,0.22874514,104920.0,104910.0,0.77301433]
[1749916178520,0.21921435,104920.0,104910.0,0.75395138]
[1749916178784,0.20968347,104920.0,104910.0,0.31148]
[1749916178990,2.96785049,104920.0,104910.0,0.48752]
[1749916179217,2.99060966,104920.0,104910.0,0.32392]
[1749916179427,2.99060966,104920.0,104910.0,0.35402]
[1749916179632,2.96785049,104920.0,104910.0,0.36355197]
[1749916180058,2.96785049,104920.0,104910.0,0.56372344]
[1749916180267,2.96785049,104920.0,104910.0,0.59402344]
[1749916180480,2.96785049,104920.0,104910.0,0.70923597]
[1749916180895,2.96785049,104920.0,104910.0,0.61308675]
[1749916181542,2.96785049,104920.0,104910.0,0.33840675]
[1749916182410,2.96785049,104920.0,104910.0,0.34793818]
[1749916182411,2.97738128,104920.0,104910.0,0.34793818]
[1749916183541,2.97738128,104920.0,104910.0,0.32887523]
[1749916184262,2.97738128,104920.0,104910.0,0.30810693]
[1749916184489,2.95831942,104920.0,104910.0,0.27951156]
[1749916184726,2.95831942,104920.0,104910.0,0.29857505]
[1749916185443,2.77722888,104920.0,104910.0,0.30810657]
[1749916185681,2.98691198,104920.0,104910.0,0.34130657]
[1749916185916,2.98691198,104920.0,104910.0,0.350838]
[1749916186384,2.98691198,104920.0,104910.0,0.34130657]
[1749916186855,2.97738137,104920.0,104910.0,0.33177505]
[1749916187357,2.97738137,104920.0,104910.0,0.34130648]
[1749916187596,2.78675995,104920.0,104910.0,0.35083782]
[1749916187849,2.78675949,104920.0,104910.0,0.35083782]
[1749916188329,2.79629047,104920.0,104910.0,0.35083782]
[1749916190966,2.80582154,104920.0,104910.0,0.35083782]
[1749916191174,2.82861826,104920.0,104910.0,0.35083782]
[1749916191381,3.01923968,104920.0,104910.0,0.34130648]
[1749916192233,3.01923968,104920.0,104910.0,0.33177505]
[1749916192480,3.00970907,104920.0,104910.0,0.34130666]
[1749916193164,3.00970907,104920.0,104910.0,0.35083818]
[1749916193371,3.00970907,104920.0,104910.0,0.33177505]
[1749916193824,2.80955658,104920.0,104910.0,0.35083782]
[1749916196372,2.80955621,104920.0,104910.0,0.35083782]
[1749916198457,2.61004521,104920.0,104910.0,0.35083782]
[1749916198675,2.83216663,104920.0,104910.0,0.004]
[1749916198880,2.80066663,104920.0,104910.0,0.23931959]
[1749916199092,2.84107917,104920.0,104910.0,0.24885156]
[1749916199296,2.83154856,104920.0,104910.0,0.24885156]
[1749916199951,2.82201768,104920.0,104910.0,0.04868]
[1749916200882,2.79051768,104920.0,104910.0,0.04868]
[1749916201734,3.1123266,104920.0,104860.0,0.19066195]
[1749916201959,3.1123266,104920.0,104860.0,0.07528]
[1749916201960,2.76843483,104870.0,104860.0,0.07528]
[1749916202173,2.81030259,104870.0,104860.0,0.07528]
[1749916202385,2.81030259,104870.0,104860.0,0.07548]
[1749916202386,2.81025685,104870.0,104860.0,0.07548]
[1749916202593,2.80072142,104870.0,104860.0,0.10608]
[1749916203006,2.80072142,104870.0,104860.0,0.0614]
[1749916203218,2.77797044,104870.0,104860.0,0.10608]
[1749916203431,2.77806138,104870.0,104860.0,0.10608]
[1749916203636,2.77906138,104870.0,104860.0,0.10608]
[1749916204045,2.80727231,104870.0,104860.0,0.10608]
[1749916204245,2.81027231,104870.0,104860.0,0.10608]
[1749916205570,2.84342062,104870.0,104860.0,0.10608]
[1749916206173,2.84642062,104870.0,104860.0,0.10608]
[1749916206590,2.63663718,104870.0,104860.0,0.37619053]
[1749916206802,0.43705556,104870.0,104860.0,0.37619053]
[1749916207010,0.43705556,104870.0,104860.0,0.32541896]
[1749916207425,0.45312605,104870.0,104860.0,0.32541896]
[1749916207635,0.45112605,104870.0,104860.0,0.32541896]
[1749916207842,0.44359044,104870.0,104860.0,0.32541896]
[1749916208245,0.45312587,104870.0,104860.0,0.32541896]
[1749916208670,0.63430403,104870.0,104860.0,0.32541915]
[1749916208882,0.63430403,104870.0,104860.0,0.31588308]
[1749916208883,0.62476887,104870.0,104860.0,0.31588308]
[1749916209519,0.62476887,104870.0,104860.0,0.32541915]
[1749916212932,0.43405656,104870.0,104860.0,0.40479146]
[1749916213801,0.42452095,104870.0,104860.0,0.41432734]
[1749916214029,0.40545018,104870.0,104860.0,0.344491]
[1749916214234,0.40545018,104870.0,104860.0,0.45527361]
[1749916215057,0.06545018,104870.0,104860.0,0.45527361]
[1749916215576,0.00309094,104870.0,104860.0,0.45527361]
[1749916216189,9.094e-05,104870.0,104860.0,0.45527361]
[1749916216600,9.094e-05,104870.0,104860.0,0.45727361]
[1749916217250,9.094e-05,104870.0,104860.0,0.55342283]
[1749916218513,0.00953316,104890.0,104880.0,0.28259713]
[1749916218725,2.71923761,104900.0,104890.0,0.24254289]
[1749916218939,2.71928535,104900.0,104890.0,0.28722307]
[1749916219176,2.71928535,104900.0,104890.0,0.29675641]
[1749916219616,2.71928535,104900.0,104890.0,0.35156914]
[1749916220254,2.64866741,104900.0,104890.0,0.35156914]
[1749916220561,2.98366741,104900.0,104890.0,0.39160239]
[1749916220672,2.98866741,104900.0,104890.0,0.39160239]
[1749916220883,2.95965723,104900.0,104890.0,0.39160239]
[1749916221104,2.95965723,104900.0,104890.0,0.33678966]
[1749916221341,0.53122696,104900.0,104890.0,0.33678966]
[1749916221582,0.55482461,104900.0,104890.0,0.34632282]
[1749916221805,0.54729191,104900.0,104890.0,0.34632282]
[1749916222041,0.57969563,104900.0,104890.0,0.34632282]
[1749916222262,0.57769563,104900.0,104890.0,0.34632282]
[1749916222473,0.57869563,104900.0,104890.0,0.34632282]
[1749916222903,0.59222833,104900.0,104890.0,0.34632282]
[1749916223121,0.59776112,104900.0,104890.0,0.34632282]
[1749916223547,0.59976112,104900.0,104890.0,0.34632282]
[1749916224422,0.58069563,104900.0,104890.0,0.41631251]
[1749916224632,0.59022833,104900.0,104890.0,0.41631251]
[1749916225251,0.59022833,104900.0,104890.0,0.34632282]
[1749916225461,0.61887433,104900.0,104890.0,0.34632282]
[1749916225931,0.55209861,104900.0,104890.0,0.45710543]
[1749916230690,0.21209861,104900.0,104890.0,0.45710543]
[1749916230927,0.00304774,104900.0,104890.0,0.45710543]
[1749916231167,0.00304774,104900.0,104890.0,0.55325465]
[1749916231837,4.774e-05,104900.0,104890.0,0.55325465]
[1749916232054,4.774e-05,104900.0,104890.0,0.55425465]
[1749916232336,4.774e-05,104900.0,104890.0,0.55525465]
[1749916232787,4.774e-05,104900.0,104890.0,0.55425465]
[1749916233010,4.774e-05,104900.0,104890.0,0.50957465]
[1749916233232,4.774e-05,104900.0,104890.0,0.71545465]
[1749916233680,4.774e-05,104900.0,104890.0,0.71745465]
[1749916234133,4.774e-05,104900.0,104890.0,0.72045465]
[1749916240334,4.774e-05,104900.0,104890.0,0.51357465]
[1749916240538,4.774e-05,104900.0,104890.0,0.72025465]
[1749916241896,4.774e-05,104900.0,104890.0,0.72021465]
[1749916242106,0.00957981,104900.0,104890.0,0.40288458]
[1749916242313,0.0095799,104900.0,104890.0,0.40288458]
[1749916242550,4.774e-05,104900.0,104890.0,0.62406543]
[1749916242779,4.774e-05,104900.0,104890.0,0.46182543]
[1749916242996,4.774e-05,104900.0,104890.0,0.62406543]
[1749916243213,2.228187,104910.0,104900.0,0.21925532]
[1749916243417,0.02859456,104910.0,104900.0,0.22878739]
[1749916243620,0.01906277,104910.0,104900.0,0.22878739]
[1749916243860,0.02859447,104910.0,104900.0,0.22878739]
[1749916244099,0.01906277,104910.0,104900.0,0.28360012]
[1749916244298,0.0285942,104910.0,104900.0,0.31590012]
[1749916245370,0.06700487,104910.0,104900.0,0.31590012]
[1749916245577,0.64541751,104920.0,104910.0,0.21923469]
[1749916245578,0.63264821,104920.0,104910.0,0.21923469]
[1749916245786,2.80651481,104920.0,104910.0,0.38147487]
[1749916245997,2.61589013,104920.0,104910.0,0.45245584]
[1749916246208,0.368642,104920.0,104910.0,0.52578718]
[1749916246430,0.35906086,104920.0,104910.0,0.52578718]
[1749916246649,0.01906086,104920.0,104910.0,0.52578718]
[1749916246870,0.02006077,104920.0,104910.0,0.52578718]
[1749916247519,0.01053034,104920.0,104910.0,0.52578718]
[1749916247749,0.001,104920.0,104910.0,0.57018718]
[1749916248182,0.002,104920.0,104910.0,0.68096979]
[1749916248795,0.002,104920.0,104910.0,0.47432979]
[1749916249083,0.04049414,104920.0,104910.0,0.68096979]
[1749916249299,0.03949414,104920.0,104910.0,0.68196979]
[1749916249516,2.34632084,104940.0,104930.0,0.21919263]
[1749916249721,2.36920291,104940.0,104930.0,0.21919263]
[1749916249931,2.37873207,104940.0,104930.0,0.21919263]
[1749916250140,2.31782399,104940.0,104930.0,0.21919263]
[1749916250799,2.28270807,104940.0,104930.0,0.40660088]
[1749916251042,0.04693921,104940.0,104930.0,0.44623263]
[1749916251261,0.00514321,104940.0,104930.0,0.44623263]
[1749916251762,0.00514321,104940.0,104930.0,0.55701524]
[1749916252420,0.00314321,104940.0,104930.0,0.55701524]
[1749916252647,0.04185863,104940.0,104930.0,0.55701524]
[1749916252858,0.00314321,104940.0,104930.0,0.55701524]
[1749916253076,0.00014321,104940.0,104930.0,0.55701524]
[1749916253285,0.00014321,104940.0,104930.0,0.90940343]
[1749916253943,0.00214321,104940.0,104930.0,0.90940343]
[1749916254181,0.00214321,104940.0,104930.0,0.83273524]
[1749916254422,0.00014321,104940.0,104930.0,0.87685524]
[1749916254635,0.00014321,104940.0,104930.0,0.87785524]
[1749916256589,0.03903368,104940.0,104930.0,0.87785524]
[1749916256841,0.00014321,104940.0,104930.0,0.87785524]
[1749916257064,0.00014321,104940.0,104930.0,0.97400446]
[1749916257975,0.00014321,104940.0,104930.0,0.76764446]
[1749916258403,0.00014321,104940.0,104930.0,0.97400446]
[1749916259029,0.00967164,104940.0,104930.0,0.76764446]
[1749916259246,0.00014321,104940.0,104930.0,0.97400446]
[1749916259868,0.00014321,104940.0,104930.0,0.87785524]
[1749916260083,0.00967164,104940.0,104930.0,0.87785524]
[1749916261139,0.0478681,104940.0,104930.0,0.67149524]
[1749916261343,0.0478681,104940.0,104930.0,0.87781524]
[1749916261752,0.05739671,104940.0,104930.0,0.87781524]
[1749916261961,0.0478681,104940.0,104930.0,0.87781524]
[1749916262602,0.03833967,104940.0,104930.0,0.97396446]
[1749916262818,0.03833967,104940.0,104930.0,0.70284446]
[1749916263026,0.03833967,104940.0,104930.0,0.87461524]
[1749916263888,0.0478681,104940.0,104930.0,0.87461524]
[1749916264094,0.03833967,104940.0,104930.0,0.87461524]
[1749916268321,0.00014321,104940.0,104930.0,0.87461524]
[1749916268543,0.00014321,104940.0,104930.0,0.97076446]
[1749916282258,0.00014321,104940.0,104930.0,0.76444446]
[1749916282470,0.00014321,104940.0,104930.0,0.97072446]
[1749916282695,0.00014321,104940.0,104930.0,0.76444446]
[1749916282908,0.00014321,104940.0,104930.0,0.97072446]
[1749916283127,0.00014321,104940.0,104930.0,0.66829524]
[1749916283366,0.00014321,104940.0,104930.0,0.87457524]
[1749916283582,0.00014321,104940.0,104930.0,0.66829524]
[1749916283809,0.00014321,104940.0,104930.0,0.87453524]
[1749916284248,0.00014321,104940.0,104930.0,0.37903439]
[1749916284469,0.00014321,104940.0,104930.0,0.9196445]
[1749916284910,0.00014321,104940.0,104930.0,0.77206535]
[1749916285135,0.00014321,104940.0,104930.0,0.93418535]
[1749916285353,0.00014321,104940.0,104930.0,0.72794535]
[1749916285566,0.00014321,104940.0,104930.0,0.60657524]
[1749916285777,0.00014321,104940.0,104930.0,0.81281524]
[1749916286649,0.00014321,104940.0,104930.0,0.84321524]
[1749916287530,0.00014321,104940.0,104930.0,0.68109524]
[1749916287768,0.00014321,104940.0,104930.0,0.93546143]
[1749916287991,0.00014321,104940.0,104930.0,0.96716143]
[1749916288736,0.00014321,104940.0,104930.0,0.80504143]
[1749916288997,0.00014321,104940.0,104930.0,0.96716143]
[1749916289434,0.00014321,104940.0,104930.0,0.80504143]
[1749916289666,0.00014321,104940.0,104930.0,0.96712143]
[1749916293601,0.00014321,104940.0,104930.0,0.87487524]
[1749916302468,0.00014321,104940.0,104930.0,0.84317524]
[1749916303855,0.00014321,104940.0,104930.0,0.68109524]
[1749916304090,0.00014321,104940.0,104930.0,0.81277524]
[1749916304577,0.00014321,104940.0,104930.0,0.65069524]
[1749916304809,0.00014321,104940.0,104930.0,0.81277524]
[1749916305910,0.00967164,104940.0,104930.0,0.70199263]
[1749916306126,0.01920016,104940.0,104930.0,0.70199263]
[1749916307628,0.02872887,104940.0,104930.0,0.22119263]
[1749916307850,0.02872887,104940.0,104930.0,0.70199263]
[1749916308061,0.10098674,104940.0,104930.0,0.70199263]
[1749916308288,0.10098665,104940.0,104930.0,0.70199263]
[1749916308954,2.24724487,104940.0,104930.0,0.53991263]
[1749916309247,0.01905787,104940.0,104930.0,0.49579263]
[1749916309476,0.02858649,104940.0,104930.0,0.71148233]
[1749916309695,0.02858649,104940.0,104930.0,0.50532233]
[1749916309916,0.02858649,104940.0,104930.0,0.71148233]
[1749916310354,0.03811556,104940.0,104930.0,0.71148233]
[1749916310574,2.7968881,104940.0,104930.0,0.20213332]
[1749916310797,2.81015843,104940.0,104930.0,0.41782312]
[1749916311850,2.62567334,104940.0,104930.0,0.43688225]
[1749916312738,2.62567334,104940.0,104930.0,0.43588225]
[1749916312990,2.62767334,104940.0,104930.0,0.43588225]
[1749916313217,2.82778768,104940.0,104930.0,0.43588225]
[1749916313419,2.82778768,104940.0,104930.0,0.43488225]
[1749916313836,2.82878768,104940.0,104930.0,0.43488225]
[1749916314258,2.63820259,104940.0,104930.0,0.43484225]
[1749916314462,2.62867334,104940.0,104930.0,0.43484225]
[1749916314686,2.82878768,104940.0,104930.0,0.26327282]
[1749916314893,2.65836804,104940.0,104930.0,0.27280243]
[1749916315314,2.65836804,104940.0,104930.0,0.42531282]
[1749916315760,2.65836804,104940.0,104930.0,0.21919282]
[1749916315970,2.65836804,104940.0,104930.0,0.43484243]
[1749916316180,2.65836804,104940.0,104930.0,0.44437195]
[1749916316380,2.65836804,104940.0,104930.0,0.43484243]
[1749916316837,2.65836804,104940.0,104930.0,0.22872243]
[1749916317045,2.63820259,104940.0,104930.0,0.43484243]
[1749916317260,2.8192587,104940.0,104930.0,0.20013341]
[1749916317468,2.8192587,104940.0,104930.0,0.42531346]
[1749916317675,2.8192587,104940.0,104930.0,0.43484335]
[1749916317888,2.8192587,104940.0,104930.0,0.4443725]
[1749916317889,2.61304436,104940.0,104930.0,0.4443725]
[1749916318108,2.61304436,104940.0,104930.0,0.44437195]
[1749916318531,2.62257361,104940.0,104930.0,0.44437195]
[1749916321082,2.61304436,104940.0,104930.0,0.44437195]
[1749916321300,2.613044,104940.0,104930.0,0.47447195]
[1749916322174,2.63210241,104940.0,104930.0,0.47447195]
[1749916322395,2.62257252,104940.0,104930.0,0.31243195]
[1749916322605,2.75257252,104940.0,104930.0,0.34453195]
[1749916323043,2.72398613,104940.0,104930.0,0.34453195]
[1749916323280,0.473,104940.0,104930.0,0.34453195]
[1749916323493,0.133,104940.0,104930.0,0.34453195]
[1749916324822,0.133,104940.0,104930.0,0.3590728]
[1749916325809,0.133,104940.0,104930.0,0.45531456]
[1749916325993,0.003,104940.0,104930.0,0.54367238]
[1749916326809,0.001,104940.0,104930.0,0.54367238]
[1749916327207,0.8557038,104970.0,104960.0,0.20007603]
[1749916327208,3.60489562,104970.0,104960.0,0.20007603]
[1749916327427,3.69224467,104970.0,104960.0,0.2536831]
[1749916327829,3.70113645,104970.0,104960.0,0.2536831]
[1749916328029,3.70113645,104970.0,104960.0,0.26321008]
[1749916328259,3.69161046,104970.0,104960.0,0.26321008]
[1749916328518,3.68271869,104970.0,104960.0,0.26321008]
[1749916328885,3.68208426,104970.0,104960.0,0.24415603]
[1749916329100,3.68508426,104970.0,104960.0,0.25368319]
[1749916329306,3.68508426,104970.0,104960.0,0.26321026]
[1749916329519,3.68508426,104970.0,104960.0,0.04408]
[1749916329520,3.67555792,104970.0,104960.0,0.04408]
[1749916329938,3.67555792,104970.0,104960.0,0.05360743]
[1749916330147,3.67955792,104970.0,104960.0,0.05360743]
[1749916330360,3.67955665,104970.0,104960.0,0.04408]
[1749916330571,3.78180587,104970.0,104960.0,0.04408]
[1749916331225,3.68565665,104970.0,104960.0,0.04408]
[1749916331436,3.71409355,104970.0,104960.0,0.04408]
[1749916332296,3.70799355,104970.0,104960.0,0.04408]
[1749916332720,3.71409355,104970.0,104960.0,0.04408]
[1749916332943,3.70799355,104970.0,104960.0,0.04408]
[1749916333162,3.67955665,104970.0,104960.0,0.04408]
[1749916333388,3.70799355,104970.0,104960.0,0.07418]
[1749916333600,3.70799462,104970.0,104960.0,0.04408]
[1749916333827,3.70799463,104970.0,104960.0,0.04408]
[1749916334029,3.80414385,104970.0,104960.0,0.04408]
[1749916334236,3.81024385,104970.0,104960.0,0.04408]
[1749916335759,3.80414385,104970.0,104960.0,0.04408]
[1749916336213,3.81024453,104970.0,104960.0,0.04408]
[1749916337046,2.24724277,104950.0,104940.0,0.4319124]
[1749916337258,2.27954004,104950.0,104940.0,0.34257888]
[1749916338117,2.27953959,104950.0,104940.0,0.34257888]
[1749916338324,2.28906775,104950.0,104940.0,0.34257888]
[1749916338773,2.4796355,104950.0,104940.0,0.26991294]
[1749916338961,2.4701077,104950.0,104940.0,0.26991294]
[1749916339190,2.4701077,104950.0,104940.0,0.30446387]
[1749916339191,2.46057972,104950.0,104940.0,0.30446387]
[1749916339439,2.46057972,104950.0,104940.0,0.31399294]
[1749916340114,2.59057972,104950.0,104940.0,0.32352174]
[1749916340325,2.40301279,104950.0,104940.0,0.33305045]
[1749916340535,2.40301279,104950.0,104940.0,0.34257906]
[1749916341399,2.40301279,104950.0,104940.0,0.33305045]
[1749916341621,2.40301279,104950.0,104940.0,0.34257906]
[1749916341833,2.40301234,104950.0,104940.0,0.34257906]
[1749916342272,2.41254059,104950.0,104940.0,0.34257906]
[1749916344029,2.4030118,104950.0,104940.0,0.34257906]
[1749916344283,2.41253996,104950.0,104940.0,0.34257906]
[1749916344745,2.231187,104950.0,104940.0,0.42808823]
[1749916344963,0.003,104950.0,104940.0,0.35711991]
[1749916345641,0.003,104950.0,104940.0,0.45336167]
[1749916347945,0.003,104950.0,104940.0,0.35711991]
[1749916348376,0.01252771,104950.0,104940.0,0.29849906]
[1749916348588,0.01252762,104950.0,104940.0,0.50449906]
[1749916348799,0.003,104950.0,104940.0,0.50449906]
[1749916349007,0.01252762,104950.0,104940.0,0.50449906]
[1749916350690,0.003,104950.0,104940.0,0.60064828]
[1749916351311,0.01252762,104950.0,104940.0,0.50449906]
[1749916352144,0.003,104950.0,104940.0,0.50449906]
[1749916352569,0.01252752,104950.0,104940.0,0.50449906]
[1749916354641,0.04111146,104950.0,104940.0,0.34253906]
[1749916354860,0.03158321,104950.0,104940.0,0.50445906]
[1749916355093,2.26929837,104950.0,104940.0,0.50445906]
[1749916355359,2.28255044,104950.0,104940.0,0.50445906]
[1749916355572,2.31118344,104950.0,104940.0,0.50445906]
[1749916355972,2.32071151,104950.0,104940.0,0.50445906]
[1749916357641,2.59677366,104940.0,104930.0,0.28009263]
[1749916357845,2.59677366,104940.0,104930.0,0.32413263]
[1749916357846,2.6195538,104940.0,104930.0,0.32413263]
[1749916358261,2.6195538,104940.0,104930.0,0.28009263]
[1749916358470,2.80061064,104940.0,104930.0,0.04404]
[1749916358744,2.83799014,104940.0,104930.0,0.04404]
[1749916358992,0.02858911,104930.0,104920.0,0.29283991]
[1749916359202,2.61955634,104930.0,104920.0,0.49894312]
[1749916359830,2.64819507,104930.0,104920.0,0.48941269]
[1749916360043,2.66725512,104930.0,104920.0,0.49894312]
[1749916360270,2.66725512,104930.0,104920.0,0.50094312]
[1749916360489,2.66725512,104930.0,104920.0,0.49894312]
[1749916360706,2.94756438,104930.0,104920.0,0.04418321]
[1749916360910,2.94756438,104930.0,104920.0,0.04618321]
[1749916361116,2.97603967,104930.0,104920.0,0.04618321]
[1749916361317,2.94756438,104930.0,104920.0,0.04618321]
[1749916361530,2.94756438,104930.0,104920.0,0.04418321]
[1749916361736,2.92551129,104930.0,104920.0,0.04518321]
[1749916364696,2.92551129,104930.0,104920.0,0.04418321]
[1749916365105,2.92751129,104930.0,104920.0,0.04418321]
[1749916365532,2.92751129,104930.0,104920.0,0.10788321]
[1749916365961,2.93051129,104930.0,104920.0,0.10788321]
[1749916366386,2.62460623,104930.0,104920.0,0.36171474]
[1749916366647,0.345,104930.0,104920.0,0.37625559]
[1749916366851,0.36405913,104930.0,104920.0,0.37625559]
[1749916367056,0.37358902,104930.0,104920.0,0.34163759]
[1749916367266,0.36405913,104930.0,104920.0,0.34163759]
[1749916367472,0.36205913,104930.0,104920.0,0.34163759]
[1749916367918,0.36305913,104930.0,104920.0,0.34163759]
[1749916368130,0.42546681,104930.0,104920.0,0.34163759]
[1749916368361,0.44452686,104930.0,104920.0,0.34163759]
[1749916368597,2.67271386,104930.0,104920.0,0.34163759]
[1749916368846,2.66971386,104930.0,104920.0,0.34163759]
[1749916369125,2.67071386,104930.0,104920.0,0.34163759]
[1749916369592,2.59877611,104930.0,104920.0,0.34163759]
[1749916370029,2.60830627,104930.0,104920.0,0.34163777]
[1749916370244,2.58924604,104930.0,104920.0,0.3511682]
[1749916370498,2.59877583,104930.0,104920.0,0.3511682]
[1749916370911,2.60830581,104930.0,104920.0,0.3511682]
[1749916371317,2.59877583,104930.0,104920.0,0.3511682]
[1749916371524,2.79890915,104930.0,104920.0,0.32709692]
[1749916371732,2.79890915,104930.0,104920.0,0.33662744]
[1749916372160,2.77985048,104930.0,104920.0,0.10788321]
[1749916372362,2.80257768,104930.0,104920.0,0.3080357]
[1749916372565,2.80257768,104930.0,104920.0,0.32709756]
[1749916373612,2.80257768,104930.0,104920.0,0.04418321]
[1749916373819,2.82257768,104930.0,104920.0,0.04418321]
[1749916374026,2.85121968,104930.0,104920.0,0.04418321]
[1749916374682,2.85121968,104930.0,104920.0,0.07708321]
[1749916375325,2.85121968,104930.0,104900.0,0.0639]
[1749916375326,0.2097029,104910.0,104900.0,0.0639]
[1749916375543,0.2097029,104910.0,104900.0,0.11743288]